bitfinex-derivatives/quotes_BNBF0:USTF0_20251027
["timestamp","ask_amount","ask_price","bid_price","bid_amount"]
[1761578890985,0.51122985,1140.2,1138.9,0.895]
[1761578891184,0.51122985,1140.1,1138.9,0.895]
[1761578891382,0.64349368,1140.6,1138.9,0.895]
[1761578891582,0.51126432,1140.5,1138.9,0.895]
[1761578891782,0.51126432,1140.4,1138.9,0.895]
[1761578891981,0.51126432,1140.3,1138.9,0.895]
[1761578892180,0.64349368,1140.7,1138.9,0.895]
[1761578892385,0.51153887,1140.6,1138.9,0.895]
[1761578892690,0.51153887,1140.5,1138.9,0.895]
[1761578892886,0.51153887,1140.4,1138.9,1.593]
[1761578893087,0.51153887,1140.3,1138.9,1.593]
[1761578893287,0.64349368,1140.7,1138.9,1.593]
[1761578893583,0.51165672,1140.6,1138.9,1.593]
[1761578893885,0.51165672,1140.5,1138.9,1.593]
[1761578894082,0.51165672,1140.4,1138.9,1.593]
[1761578894286,0.51165672,1140.3,1138.9,1.593]
[1761578894485,0.64349368,1140.7,1138.9,1.593]
[1761578894689,0.51179752,1140.6,1138.9,1.593]
[1761578894886,0.51179752,1140.5,1138.9,1.593]
[1761578895183,0.51179752,1140.4,1138.9,1.593]
[1761578895386,0.51179752,1140.3,1138.9,1.593]
[1761578895584,0.64349368,1140.7,1138.9,1.593]
[1761578895785,0.51194101,1140.6,1138.9,1.593]
[1761578895988,0.51194101,1140.5,1138.9,1.593]
[1761578896186,0.51194101,1140.4,1138.9,1.593]
[1761578896388,0.64349368,1140.9,1138.9,1.593]
[1761578896586,0.51216359,1140.8,1138.9,1.593]
[1761578896787,0.51216359,1140.7,1138.9,1.593]
[1761578897085,0.51216359,1140.6,1138.9,1.593]
[1761578897389,2.1616776,1142.3,1138.9,1.593]
[1761578897390,0.51216359,1140.5,1138.9,1.593]
[1761578897685,0.51216359,1140.4,1138.9,1.593]
[1761578897889,0.64349368,1140.8,1138.9,1.593]
[1761578898090,0.51227315,1140.7,1138.9,1.593]
[1761578898386,0.51227315,1140.6,1138.9,1.593]
[1761578898586,0.51227315,1140.5,1138.9,1.593]
[1761578898789,0.51227315,1140.4,1138.9,1.593]
[1761578898985,0.64349368,1140.8,1138.9,1.593]
[1761578899189,0.51233038,1140.7,1138.9,1.593]
[1761578899387,0.51233038,1140.6,1138.9,1.593]
[1761578899586,0.51233038,1140.5,1138.9,1.593]
[1761578899889,0.51233038,1140.4,1138.9,1.593]
[1761578900090,0.64349368,1140.8,1138.9,1.593]
[1761578900287,0.51229378,1140.7,1138.9,1.593]
[1761578900487,0.51229378,1140.6,1138.9,1.593]
[1761578900687,0.51229378,1140.5,1138.9,1.593]
[1761578900890,0.51229378,1140.4,1138.9,1.593]
[1761578901090,0.51229378,1140.3,1138.9,1.593]
[1761578901291,0.64349368,1140.7,1138.9,1.593]
[1761578901487,0.51206533,1140.6,1138.9,1.593]
[1761578901687,0.51206533,1140.5,1138.9,1.593]
[1761578901991,0.51206533,1140.4,1138.9,1.593]
[1761578902291,0.51206533,1140.3,1138.9,1.593]
[1761578902492,0.64349368,1140.9,1138.9,1.593]
[1761578902692,0.51206756,1140.8,1138.9,1.593]
[1761578902892,0.51206756,1140.7,1138.9,1.593]
[1761578903092,0.51206756,1140.6,1138.9,1.593]
[1761578903291,0.51206756,1140.5,1138.9,1.593]
[1761578903488,0.51206756,1140.4,1138.9,1.593]
[1761578903792,0.51206756,1140.3,1138.9,1.593]
[1761578903988,0.64349368,1140.9,1138.9,1.593]
[1761578904188,0.51207321,1140.8,1138.9,1.593]
[1761578904393,0.51207321,1140.7,1138.9,1.593]
[1761578904591,0.51207321,1140.6,1138.9,1.593]
[1761578904794,0.51207321,1140.5,1138.9,1.593]
[1761578905094,0.51207321,1140.4,1138.9,1.593]
[1761578905292,0.51207321,1140.3,1138.9,1.593]
[1761578905490,0.64349368,1140.9,1138.9,1.593]
[1761578905692,0.51221642,1140.8,1138.9,1.593]
[1761578905892,0.51221642,1140.7,1138.9,1.593]
[1761578906094,0.51221642,1140.6,1138.9,1.593]
[1761578906293,0.51221642,1140.5,1138.9,1.593]
[1761578906493,0.51221642,1140.4,1138.9,1.593]
[1761578906792,0.64349368,1140.8,1138.9,1.593]
[1761578906998,0.51220893,1140.7,1138.9,1.593]
[1761578907193,0.51220893,1140.6,1138.9,1.593]
[1761578907397,0.51220893,1140.5,1138.9,1.593]
[1761578907594,0.64349368,1141.0,1138.9,1.593]
[1761578907898,0.51223926,1140.9,1138.9,1.593]
[1761578908194,0.51223926,1140.8,1138.9,1.593]
[1761578908394,0.51223926,1140.7,1138.9,1.593]
[1761578908594,0.51223926,1140.6,1138.9,1.593]
[1761578908793,0.51223926,1140.5,1138.9,1.593]
[1761578909096,0.64349368,1141.0,1138.9,1.593]
[1761578909297,0.51193482,1140.9,1138.9,1.593]
[1761578909498,0.51193482,1140.8,1138.9,1.593]
[1761578909696,0.51193482,1140.7,1138.9,1.593]
[1761578909893,0.51193482,1140.6,1138.9,1.593]
[1761578910097,0.51193482,1140.5,1138.9,1.593]
[1761578910291,0.51193482,1140.4,1138.9,1.593]
[1761578910494,0.64349368,1141.0,1138.9,1.593]
[1761578910697,1.15549002,1140.9,1138.9,2.8872651]
[1761578910896,0.51199634,1140.8,1139.0,1.2942651]
[1761578911099,0.51199634,1140.7,1139.0,1.2942651]
[1761578911399,0.64349368,1141.0,1139.0,1.2942651]
[1761578911596,0.51205809,1140.9,1139.0,1.2942651]
[1761578911800,0.51205809,1140.8,1139.0,1.2942651]
[1761578911996,0.51205809,1140.7,1139.0,1.2942651]
[1761578912201,0.64349368,1141.1,1138.9,1.593]
[1761578912401,0.5121755,1141.0,1138.9,1.593]
[1761578912602,0.5121755,1140.9,1138.9,1.593]
[1761578912802,0.64349368,1141.1,1139.1,1.2942651]
[1761578912998,0.51224969,1141.0,1139.2,1.2942651]
[1761578913202,0.51224969,1140.9,1139.2,1.2942651]
[1761578913399,0.64349368,1141.2,1139.2,1.2942651]
[1761578913604,0.51228789,1141.1,1139.2,1.2942651]
[1761578913803,0.51228789,1141.0,1139.2,1.2942651]
[1761578914000,0.51228789,1140.9,1139.2,1.2942651]
[1761578914203,0.64349368,1141.3,1139.2,1.2942651]
[1761578914401,0.51219155,1141.2,1139.2,1.2942651]
[1761578914599,0.51219155,1141.1,1139.2,1.2942651]
[1761578914901,0.51219155,1141.0,1139.2,1.2942651]
[1761578915099,0.51219155,1140.9,1139.2,1.2942651]
[1761578915300,0.64349368,1141.2,1139.2,1.2942651]
[1761578915603,0.51202096,1141.1,1139.2,1.2942651]
[1761578915803,0.51202096,1141.0,1139.2,1.2942651]
[1761578915999,0.51202096,1140.9,1139.2,1.2942651]
[1761578916204,0.64349368,1141.2,1139.1,1.2942651]
[1761578916501,0.51194148,1141.1,1139.1,1.2942651]
[1761578916699,0.51194148,1141.0,1139.1,1.2942651]
[1761578916899,0.51194148,1140.9,1139.1,1.2942651]
[1761578917104,0.64349368,1141.2,1139.1,1.2942651]
[1761578917304,0.51190985,1141.1,1139.1,1.2942651]
[1761578917605,0.51190985,1141.0,1139.1,1.2942651]
[1761578917802,0.51190985,1140.9,1139.0,1.2942651]
[1761578918102,0.64349368,1141.2,1139.0,1.2942651]
[1761578918302,0.51207877,1141.1,1139.0,1.2942651]
[1761578918506,0.51207877,1141.0,1139.0,1.2942651]
[1761578918699,0.51207877,1140.9,1139.0,1.2942651]
[1761578918905,0.64349368,1141.3,1139.0,1.2942651]
[1761578919103,0.51216223,1141.2,1139.0,1.2942651]
[1761578919410,0.51216223,1141.1,1139.0,1.2942651]
[1761578919606,0.51216223,1141.0,1138.9,1.593]
[1761578919907,0.51216223,1140.9,1138.9,1.593]
[1761578920101,0.51216223,1140.8,1138.9,1.593]
[1761578920307,0.51216223,1140.7,1138.9,1.593]
[1761578920506,0.64349368,1141.2,1138.9,1.593]
[1761578920707,0.51213022,1141.1,1138.9,1.593]
[1761578920904,0.51213022,1141.0,1138.9,1.593]
[1761578921104,0.51213022,1140.9,1138.9,1.593]
[1761578921308,0.51213022,1140.8,1138.9,1.593]
[1761578921506,0.51213022,1140.7,1138.9,1.593]
[1761578921705,0.64349368,1141.2,1138.9,1.593]
[1761578921909,0.51209894,1141.1,1138.9,1.593]
[1761578922211,0.51209894,1141.0,1138.9,2.8872651]
[1761578922408,0.51209894,1140.9,1138.9,2.8872651]
[1761578922709,0.51209894,1140.8,1138.9,1.593]
[1761578922911,0.51209894,1140.7,1138.9,1.593]
[1761578923109,0.64349368,1141.1,1138.9,1.593]
[1761578923313,0.51209134,1141.0,1138.9,1.593]
[1761578923514,0.51209134,1140.9,1138.9,1.593]
[1761578923714,0.51209134,1140.8,1138.9,1.593]
[1761578924010,0.51209134,1140.7,1138.9,0.895]
[1761578924314,0.51209134,1140.6,1138.9,0.895]
[1761578924614,0.64349368,1141.1,1138.9,0.895]
[1761578924814,0.51219136,1141.0,1138.9,0.895]
[1761578925011,0.64349368,1141.1,1138.9,0.895]
[1761578925012,0.51219136,1140.9,1138.9,0.895]
[1761578925311,0.51219136,1140.8,1138.9,0.895]
[1761578925514,0.51219136,1140.7,1138.9,0.895]
[1761578925714,0.51219136,1140.6,1139.0,1.035]
[1761578925912,0.64349368,1141.1,1139.0,1.035]
[1761578926112,0.51225791,1141.0,1139.0,1.035]
[1761578926311,0.51225791,1140.9,1139.0,1.035]
[1761578926513,0.51225791,1140.8,1139.0,1.035]
[1761578926712,0.51225791,1140.7,1139.0,1.035]
[1761578926911,0.51225791,1140.6,1139.0,1.035]
[1761578927216,0.64349368,1141.3,1139.1,1.2942651]
[1761578927415,0.5126337,1141.2,1139.1,1.2942651]
[1761578927613,0.5126337,1141.1,1139.1,1.2942651]
[1761578927917,0.5126337,1141.0,1139.0,2.3292651]
[1761578928115,0.5126337,1140.9,1139.0,2.3292651]
[1761578928315,0.64349368,1141.3,1139.1,1.2942651]
[1761578928517,0.51289029,1141.2,1139.1,1.2942651]
[1761578928716,0.51289029,1141.1,1139.0,2.3292651]
[1761578928916,0.51289029,1141.0,1139.0,2.3292651]
[1761578929120,0.51289029,1140.9,1139.0,2.3292651]
[1761578929321,0.51289029,1140.8,1139.1,1.2942651]
[1761578929521,0.51289029,1140.7,1139.0,2.3292651]
[1761578929818,0.51289029,1140.6,1139.0,2.3292651]
[1761578930020,0.64349368,1141.0,1139.0,2.3292651]
[1761578930217,0.51327441,1140.9,1139.3,1.2942651]
[1761578930421,0.51345625,1140.8,1139.1,1.2942651]
[1761578930721,0.64349368,1141.3,1139.1,1.2942651]
[1761578930922,0.51355981,1141.2,1139.1,1.2942651]
[1761578931121,0.51355981,1141.1,1139.1,1.2942651]
[1761578931322,0.51355981,1141.0,1139.1,1.2942651]
[1761578931619,0.51355981,1140.9,1139.1,1.2942651]
[1761578931919,0.51355981,1140.8,1139.2,0.956]
[1761578932121,0.64349368,1141.3,1139.2,0.956]
[1761578932421,0.5140397,1141.2,1139.2,0.956]
[1761578932621,0.5140397,1141.1,1139.2,0.956]
[1761578932818,0.5140397,1141.0,1139.2,0.956]
[1761578933017,1.15753338,1140.9,1139.2,0.956]
[1761578933216,0.5140397,1140.8,1139.2,0.956]
[1761578933418,0.5140397,1140.7,1139.2,0.956]
[1761578933617,0.5140397,1140.6,1139.2,0.956]
[1761578933818,0.5140397,1140.5,1139.2,0.956]
[1761578934018,0.64349368,1141.0,1139.2,0.956]
[1761578934217,0.51409988,1140.9,1139.2,0.956]
[1761578934421,0.51409988,1140.8,1139.2,0.956]
[1761578934621,0.51409988,1140.7,1139.2,0.956]
[1761578934818,0.51409988,1140.6,1139.2,0.956]
[1761578935118,0.51409988,1140.5,1139.2,0.956]
[1761578935322,0.64349368,1141.0,1139.2,0.956]
[1761578935623,0.51415873,1140.9,1139.2,0.956]
[1761578935816,0.51415873,1140.8,1139.2,0.956]
[1761578936019,0.51415873,1140.7,1139.2,0.956]
[1761578936318,0.51415873,1140.6,1139.2,0.956]
[1761578936621,0.51415873,1140.5,1139.2,0.956]
[1761578936819,0.64349368,1140.8,1139.2,0.956]
[1761578937116,0.51397658,1140.7,1139.2,0.956]
[1761578937322,0.51397658,1140.6,1139.2,0.956]
[1761578937522,0.51397658,1140.5,1139.2,0.956]
[1761578937819,0.64349368,1140.8,1139.2,0.956]
[1761578938019,0.5139951,1140.7,1139.2,0.956]
[1761578938220,0.5139951,1140.6,1139.2,0.956]
[1761578938424,0.5139951,1140.5,1139.2,0.956]
[1761578938622,0.64349368,1140.9,1139.2,0.956]
[1761578938820,0.51404453,1140.8,1139.2,0.956]
[1761578939021,0.51404453,1140.7,1139.2,0.956]
[1761578939222,0.51404453,1140.6,1139.2,0.956]
[1761578939425,0.64349368,1141.0,1139.2,0.956]
[1761578939722,0.5140821,1140.9,1139.2,0.956]
[1761578939922,0.5140821,1140.8,1139.2,0.956]
[1761578940122,0.5140821,1140.7,1139.2,0.956]
[1761578940422,0.5140821,1140.6,1139.2,0.956]
[1761578940621,0.64349368,1141.0,1139.2,0.956]
[1761578940825,0.5140748,1140.9,1139.2,0.956]
[1761578941026,0.51405902,1140.8,1139.2,0.956]
[1761578941222,0.51405902,1140.7,1139.2,0.956]
[1761578941420,0.51405902,1140.6,1139.2,0.956]
[1761578941725,0.65169449,1140.9,1139.2,0.956]
[1761578941926,0.51416666,1140.8,1139.2,0.956]
[1761578942221,0.86467105,1141.1,1139.2,0.956]
[1761578942222,0.51416666,1140.7,1139.2,0.956]
[1761578942421,0.65169449,1141.2,1139.2,0.956]
[1761578942625,0.51426539,1141.1,1139.2,0.956]
[1761578942822,0.51426539,1141.0,1139.2,0.956]
[1761578943022,0.51426539,1140.9,1139.2,0.956]
[1761578943222,0.51426539,1140.8,1139.2,0.956]
[1761578943421,0.51426539,1140.7,1139.2,0.956]
[1761578943622,0.65169449,1141.2,1139.2,0.956]
[1761578943826,0.51429616,1141.1,1139.2,0.956]
[1761578944021,0.51429616,1141.0,1139.2,0.956]
[1761578944221,0.51429616,1140.9,1139.2,0.956]
[1761578944422,0.51429616,1140.8,1139.2,0.956]
[1761578944621,0.65169449,1141.4,1139.2,0.956]
[1761578944826,0.51437032,1141.3,1139.2,0.956]
[1761578945022,0.51437032,1141.2,1139.5,1.2942651]
[1761578945225,0.51437032,1141.1,1140.5,1.2942651]
[1761578945425,0.65169449,1142.5,1140.2,1.2942651]
[1761578945625,0.51400457,1142.4,1140.4,1.2942651]
[1761578945829,0.51400457,1142.3,1140.7,1.2942651]
[1761578946126,0.65169449,1142.8,1140.7,1.2942651]
[1761578946426,0.51386476,1142.7,1140.5,1.2942651]
[1761578946630,0.51386476,1142.6,1140.6,1.2942651]
[1761578946831,0.51386476,1142.5,1140.6,1.2942651]
[1761578947028,0.65169449,1142.9,1140.6,1.2942651]
[1761578947231,0.5127352,1142.8,1139.9,1.2942651]
[1761578947432,0.5127352,1142.7,1139.9,1.2942651]
[1761578947632,0.5127352,1142.6,1139.9,1.2942651]
[1761578947932,0.5127352,1142.5,1139.9,1.2942651]
[1761578948132,0.5127352,1142.4,1139.8,1.2942651]
[1761578948333,0.5127352,1142.3,1139.8,1.2942651]
[1761578948633,0.5127352,1142.2,1139.8,1.2942651]
[1761578948831,0.65169449,1142.7,1139.8,1.2942651]
[1761578949134,0.51139212,1142.6,1139.8,1.2942651]
[1761578949333,0.51139212,1142.5,1139.7,1.2942651]
[1761578949534,0.51139212,1142.4,1139.7,1.2942651]
[1761578949833,0.51139212,1142.3,1139.7,1.2942651]
[1761578950031,0.51139212,1142.2,1139.6,1.2942651]
[1761578950229,0.65169449,1142.8,1139.6,1.2942651]
[1761578950431,0.51057759,1142.7,1139.6,1.2942651]
[1761578950637,0.51057759,1142.6,1139.6,1.2942651]
[1761578950836,0.51057759,1142.5,1139.6,1.2942651]
[1761578951034,0.51057759,1142.4,1139.6,1.2942651]
[1761578951233,0.51057759,1142.3,1139.5,1.2942651]
[1761578951434,0.51057759,1142.2,1139.5,1.2942651]
[1761578951740,0.65169449,1142.7,1139.5,1.2942651]
[1761578951939,0.51029902,1142.6,1139.5,1.2942651]
[1761578952140,0.51029902,1142.5,1139.5,1.2942651]
[1761578952339,0.51029902,1142.4,1139.4,1.2942651]
[1761578952640,0.51029902,1142.3,1139.4,1.2942651]
[1761578952839,0.51029902,1142.2,1139.4,1.2942651]
[1761578953036,0.65169449,1142.8,1139.4,1.2942651]
[1761578953336,0.51000117,1142.7,1139.3,1.2942651]
[1761578953540,0.51000117,1142.6,1139.3,1.2942651]
[1761578953836,0.51000117,1142.5,1139.3,1.2942651]
[1761578954039,0.51000117,1142.4,1139.3,1.2942651]
[1761578954237,0.51000117,1142.3,1139.3,1.2942651]
[1761578954438,0.51000117,1142.2,1139.2,2.2502651]
[1761578954737,0.65169449,1142.8,1139.2,2.2502651]
[1761578954936,0.50953341,1142.7,1139.2,2.2502651]
[1761578955236,0.50953341,1142.6,1139.2,2.2502651]
[1761578955439,0.50953341,1142.5,1139.2,2.2502651]
[1761578955637,0.65169449,1142.8,1139.2,2.2502651]
[1761578955638,0.50953341,1142.4,1139.2,2.2502651]
[1761578955837,0.50953341,1142.3,1139.2,2.2502651]
[1761578956041,0.50953341,1142.2,1139.2,2.2502651]
[1761578956342,0.65169449,1142.7,1139.2,2.2502651]
[1761578956637,0.50921575,1142.6,1139.2,2.2502651]
[1761578956841,0.50921575,1142.5,1139.4,1.2942651]
[1761578957039,0.50921575,1142.4,1139.4,1.2942651]
[1761578957238,0.50921575,1142.3,1139.4,1.2942651]
[1761578957438,0.50921575,1142.2,1139.3,1.2942651]
[1761578957637,0.50921575,1142.1,1139.3,1.2942651]
[1761578957841,0.50914758,1142.0,1139.2,0.956]
[1761578958138,0.65169449,1142.7,1139.2,0.956]
[1761578958340,0.50906522,1142.6,1139.2,2.2502651]
[1761578958643,0.50906522,1142.5,1139.2,2.2502651]
[1761578958841,0.50906522,1142.4,1139.2,2.2502651]
[1761578959039,0.50906522,1142.3,1139.3,1.2942651]
[1761578959241,0.65169449,1142.8,1139.3,1.2942651]
[1761578959542,0.50874139,1142.7,1139.3,1.2942651]
[1761578959743,0.50874139,1142.6,1139.4,1.2942651]
[1761578959940,0.50874139,1142.5,1139.5,0.914]
[1761578960239,0.50874139,1142.4,1139.5,0.914]
[1761578960539,0.65169449,1142.8,1139.5,0.914]
[1761578960744,0.50856607,1142.7,1139.5,0.914]
[1761578960939,0.50856607,1142.6,1139.5,0.914]
[1761578961139,0.65169449,1142.9,1139.8,1.2942651]
[1761578961344,0.5084997,1142.8,1139.7,1.2942651]
[1761578961543,0.5084997,1142.7,1139.7,1.2942651]
[1761578961840,0.5084997,1142.6,1139.6,1.2942651]
[1761578962044,0.65169449,1143.0,1139.6,1.2942651]
[1761578962244,0.5083122,1142.9,1139.6,1.2942651]
[1761578962439,0.5083122,1142.8,1139.6,1.2942651]
[1761578962745,0.5083122,1142.7,1139.6,1.2942651]
[1761578962940,0.5083122,1142.6,1139.6,1.2942651]
[1761578963242,0.65169449,1143.0,1139.5,2.2082651]
[1761578963541,0.50798824,1142.9,1139.5,2.2082651]
[1761578963740,0.50798824,1142.8,1139.5,2.2082651]
[1761578963945,0.50798824,1142.7,1139.5,2.2082651]
[1761578964247,0.50798824,1142.6,1139.5,2.2082651]
[1761578964445,0.65169449,1143.1,1139.5,0.914]
[1761578964644,0.50787343,1143.0,1139.5,0.914]
[1761578964945,0.50787343,1142.9,1139.5,0.914]
[1761578965244,0.50787343,1142.8,1139.5,0.914]
[1761578965444,0.50787343,1142.7,1139.5,0.914]
[1761578965746,0.50787343,1142.6,1139.5,0.914]
[1761578966047,0.65169449,1143.1,1139.5,0.914]
[1761578966248,0.50780827,1143.0,1139.5,0.914]
[1761578966547,0.50780827,1142.9,1139.5,0.914]
[1761578966743,0.65169449,1143.1,1139.5,0.914]
[1761578966744,0.50780827,1142.8,1139.5,0.914]
[1761578967049,0.50780827,1142.7,1139.5,0.914]
[1761578967248,0.50780827,1142.6,1139.5,0.914]
[1761578967444,0.65169449,1143.2,1139.5,0.914]
[1761578967747,0.65169449,1143.0,1139.5,0.914]
[1761578968043,0.50762033,1142.9,1139.5,0.914]
[1761578968248,0.50762033,1142.8,1139.5,0.914]
[1761578968443,0.50762033,1142.7,1139.5,0.914]
[1761578968745,0.50762033,1142.6,1139.5,0.914]
[1761578968948,0.50762033,1142.5,1139.5,0.914]
[1761578969243,0.65169449,1143.0,1139.5,0.914]
[1761578969244,0.50762033,1142.4,1139.5,0.914]
[1761578969448,0.50762033,1142.3,1139.5,0.914]
[1761578969645,0.50762033,1142.2,1139.5,0.914]
[1761578969849,0.8379454,1143.0,1139.5,0.914]
[1761578970050,0.49647348,1142.9,1139.5,0.914]
[1761578970255,0.49647348,1142.8,1139.5,0.914]
[1761578970547,0.49647348,1142.7,1139.5,0.914]
[1761578970746,0.4965773,1142.6,1139.5,0.914]
[1761578971045,0.4965773,1142.5,1139.5,0.914]
[1761578971249,0.4965773,1142.4,1139.5,0.914]
[1761578971453,0.4965773,1142.3,1139.5,0.914]
[1761578971750,0.4965773,1142.2,1139.5,0.914]
[1761578971953,0.64393287,1142.8,1139.5,0.914]
[1761578972153,0.49662614,1142.7,1139.5,0.914]
[1761578972455,0.49662614,1142.6,1139.5,0.914]
[1761578972748,0.49662614,1142.5,1139.5,0.914]
[1761578972953,0.49662614,1142.4,1139.5,0.914]
[1761578973253,0.49662614,1142.3,1139.5,0.914]
[1761578973452,0.49662614,1142.2,1139.5,0.914]
[1761578973650,0.64393287,1142.8,1139.5,0.914]
[1761578973851,0.49668146,1142.7,1139.5,0.914]
[1761578974049,0.49668146,1142.6,1139.5,0.914]
[1761578974251,0.49668146,1142.5,1139.5,0.914]
[1761578974452,0.49668146,1142.4,1139.5,0.914]
[1761578974649,0.64393287,1142.8,1139.5,2.2082651]
[1761578974853,0.49659826,1142.7,1139.5,2.2082651]
[1761578975054,0.49659826,1142.6,1139.5,2.2082651]
[1761578975255,0.49659826,1142.5,1139.5,2.2082651]
[1761578975453,0.64393287,1142.9,1139.5,0.914]
[1761578975656,0.4965658,1142.8,1139.5,0.914]
[1761578975857,0.4965658,1142.7,1139.5,0.914]
[1761578976156,0.4965658,1142.6,1139.5,0.914]
[1761578976356,0.4965658,1142.5,1139.5,0.914]
[1761578976556,0.64393287,1142.9,1139.5,0.914]
[1761578976753,0.4965571,1142.8,1139.5,0.914]
[1761578976953,0.4965571,1142.7,1139.5,0.914]
[1761578977254,0.4965571,1142.6,1139.5,0.914]
[1761578977458,0.4965571,1142.5,1139.5,0.914]
[1761578977758,0.64393287,1143.0,1139.5,0.914]
[1761578977958,0.49655712,1142.9,1139.5,0.914]
[1761578978155,0.49655712,1142.8,1139.5,0.914]
[1761578978457,0.49655712,1142.7,1139.5,0.914]
[1761578978656,0.49655712,1142.6,1139.5,2.2082651]
[1761578978855,0.64393287,1143.0,1139.7,1.2942651]
[1761578979158,2.1616776,1144.8,1139.7,1.2942651]
[1761578979159,0.49646914,1142.9,1139.8,0.772]
[1761578979355,0.49646914,1142.8,1139.8,0.772]
[1761578979558,0.64393287,1143.2,1139.8,0.772]
[1761578979856,0.64393287,1143.8,1140.4,1.2942651]
[1761578980058,0.49613492,1143.7,1140.4,1.2942651]
[1761578980256,0.49613492,1143.6,1140.4,1.2942651]
[1761578980559,0.64393287,1144.1,1140.4,1.2942651]
[1761578980854,0.49580642,1144.0,1140.4,1.2942651]
[1761578981058,0.49580642,1143.9,1140.4,1.2942651]
[1761578981255,0.49580642,1143.8,1140.4,1.2942651]
[1761578981456,0.49580642,1143.7,1140.2,1.2942651]
[1761578981654,0.64393287,1144.2,1140.2,1.2942651]
[1761578981953,0.49551613,1144.1,1140.2,1.2942651]
[1761578982156,0.49551613,1144.0,1140.2,1.2942651]
[1761578982353,0.49551613,1143.9,1140.2,1.2942651]
[1761578982659,0.49551613,1143.8,1140.2,1.2942651]
[1761578982959,0.49551613,1143.7,1139.9,1.2942651]
[1761578983259,0.64393287,1144.5,1139.8,2.0662651]
[1761578983458,0.49501901,1144.4,1139.8,2.0662651]
[1761578983660,0.49501901,1144.3,1139.9,1.2942651]
[1761578983858,0.49501901,1144.2,1139.9,1.2942651]
[1761578984057,0.49501901,1144.1,1139.9,1.2942651]
[1761578984259,0.49501901,1144.0,1139.9,1.2942651]
[1761578984455,0.49501901,1143.9,1139.9,1.2942651]
[1761578984661,0.49501901,1143.8,1139.9,1.2942651]
[1761578984860,0.64393287,1144.5,1139.9,1.2942651]
[1761578985058,0.49481862,1144.4,1139.9,1.2942651]
[1761578985261,0.49481862,1144.3,1139.9,1.2942651]
[1761578985459,0.49481862,1144.2,1139.9,1.2942651]
[1761578985658,0.49467411,1144.1,1139.9,1.2942651]
[1761578985861,0.49467411,1144.0,1140.2,1.2942651]
[1761578986158,0.49467411,1143.9,1140.2,1.2942651]
[1761578986356,0.64141021,1144.3,1140.2,1.2942651]
[1761578986357,0.49467411,1143.8,1140.2,1.2942651]
[1761578986556,0.64141021,1144.3,1140.2,1.2942651]
[1761578986862,0.49456406,1144.2,1140.2,1.2942651]
[1761578987161,0.49456406,1144.1,1140.3,1.2942651]
[1761578987361,0.49456406,1144.0,1140.3,1.2942651]
[1761578987662,0.49456406,1143.9,1140.0,1.2942651]
[1761578987861,0.49456406,1143.8,1140.2,1.2942651]
[1761578988061,0.49456406,1143.8,1139.8,0.772]
[1761578988062,0.64141021,1144.2,1140.3,1.2942651]
[1761578988361,0.49450665,1144.1,1139.8,2.0662651]
[1761578988559,0.49450665,1144.0,1139.8,2.0662651]
[1761578988760,0.49450665,1143.9,1139.8,2.0662651]
[1761578988960,0.49450665,1143.8,1139.8,2.0662651]
[1761578989161,0.49450665,1143.7,1139.9,1.2942651]
[1761578989458,0.49450665,1143.6,1139.9,1.2942651]
[1761578989661,0.64141021,1144.2,1139.9,1.2942651]
[1761578989861,0.49442534,1144.1,1139.9,1.2942651]
[1761578990061,0.49442534,1144.0,1140.0,1.2942651]
[1761578990261,0.49442534,1143.9,1140.2,1.2942651]
[1761578990556,0.49442534,1143.8,1140.1,1.2942651]
[1761578990761,0.49442534,1143.7,1140.1,1.2942651]
[1761578990961,0.49442534,1143.6,1140.1,1.2942651]
[1761578991159,0.49442534,1143.5,1140.1,1.2942651]
[1761578991359,0.64141021,1144.0,1140.1,1.2942651]
[1761578991663,0.4945515,1143.9,1140.0,1.2942651]
[1761578991961,0.4945515,1143.8,1140.0,1.2942651]
[1761578992163,0.4945515,1143.7,1140.0,1.2942651]
[1761578992364,0.4945515,1143.6,1140.0,1.2942651]
[1761578992664,0.4945515,1143.5,1140.0,1.2942651]
[1761578992964,0.4945515,1143.4,1140.0,1.2942651]
[1761578993164,0.64141021,1143.8,1140.1,1.2942651]
[1761578993365,0.64141021,1143.6,1139.9,1.2942651]
[1761578993658,0.4949867,1143.5,1139.9,1.2942651]
[1761578994364,0.4949867,1143.4,1139.9,1.2942651]
[1761578994566,0.4949867,1143.3,1139.9,1.2942651]
[1761578994765,0.4949867,1143.2,1139.9,1.2942651]
[1761578994961,0.64141021,1143.7,1139.9,1.2942651]
[1761578995162,1.13673182,1143.6,1140.0,1.2942651]
[1761578995363,0.49532161,1143.5,1140.0,1.2942651]
[1761578995564,0.49532161,1143.4,1140.1,0.714]
[1761578995767,0.49532161,1143.3,1140.1,0.714]
[1761578995962,0.49532161,1143.2,1140.1,0.714]
[1761578996162,0.64141021,1143.6,1140.1,0.714]
[1761578996462,0.49596627,1143.5,1140.1,0.714]
[1761578996766,0.49596627,1143.4,1140.1,0.714]
[1761578996967,0.49596627,1143.3,1140.1,0.714]
[1761578997263,0.49596627,1143.2,1140.1,2.0082651]
[1761578997463,0.64141021,1143.7,1140.1,2.0082651]
[1761578997666,0.49641491,1143.6,1140.1,2.0082651]
[1761578997866,0.49641491,1143.5,1140.1,2.0082651]
[1761578998063,0.49641491,1143.4,1140.1,2.0082651]
[1761578998265,0.49641491,1143.3,1140.1,2.0082651]
[1761578998566,0.49641491,1143.2,1140.2,1.2942651]
[1761578998868,0.64141021,1143.7,1140.2,1.2942651]
[1761578999065,0.49688729,1143.6,1140.2,1.2942651]
[1761578999264,0.49688729,1143.5,1140.3,1.2942651]
[1761578999467,0.49688729,1143.4,1140.3,1.2942651]
[1761578999667,0.49688729,1143.3,1140.2,1.2942651]
[1761578999864,0.49688729,1143.2,1140.3,0.827]
[1761579000067,0.64141021,1143.7,1140.3,0.827]
[1761579000270,0.49746321,1143.6,1140.3,0.827]
[1761579000469,0.49746321,1143.5,1140.3,2.1212651]
[1761579000669,0.49746321,1143.4,1140.4,1.2942651]
[1761579000866,0.49746321,1143.3,1140.4,1.2942651]
[1761579001067,0.64141021,1143.8,1140.5,1.2942651]
[1761579001268,0.49739165,1143.7,1140.5,1.2942651]